bitfinex/quotes_SOLUSD_20250201
["timestamp","ask_amount","ask_price","bid_price","bid_amount"]
[1738399391839,14.24005601,229.28,229.27,0.01000001]
[1738399394857,13.24005601,229.28,229.27,0.01000001]
[1738399395066,14.24005601,229.28,229.27,0.01000001]
[1738399396863,15.98645501,229.28,229.27,0.01000001]
[1738399399278,37.48548373,229.28,229.27,0.01000001]
[1738399399441,0.6933297,229.22,229.21,0.03]
[1738399399647,13.24005601,229.22,229.21,0.03]
[1738399403072,13.24005601,229.22,229.18,0.03]
[1738399403073,22.6933297,229.19,229.18,0.03]
[1738399403272,35.24005601,229.19,229.18,0.03]
[1738399405885,35.24005601,229.19,229.13,0.03]
[1738399405886,0.6933297,229.14,229.13,0.03]
[1738399406080,33.24005601,229.14,229.13,0.03]
[1738399409864,0.6933297,229.14,229.13,0.03]
[1738399410177,13.24005601,229.14,229.13,0.03]
[1738399411809,0.6933297,229.14,229.13,0.03]
[1738399415073,0.6933297,229.14,229.13,12.70221631]
[1738399418192,0.6933297,229.16,229.14,0.25098]
[1738399418382,0.6933297,229.16,229.15,12.79770631]
[1738399421701,0.6933297,229.16,229.15,8.29823161]
[1738399429783,0.7563297,229.18,229.16,0.25098]
[1738399429984,0.7563297,229.18,229.16,8.29823161]
[1738399430706,0.7563297,229.18,229.16,0.25098]
[1738399431221,0.6933297,229.15,229.14,8.04725161]
[1738399431414,0.6933297,229.14,229.13,9.66475161]
[1738399432506,0.6933297,229.14,229.13,9.91573161]
[1738399434931,0.6933297,229.16,229.14,0.25098]
[1738399435091,0.6933297,229.16,229.14,8.29823161]
[1738399438514,0.6933297,229.16,229.14,21.71008014]
[1738399438706,0.6933297,229.16,229.15,8.17274161]
[1738399440015,0.6933297,229.16,229.15,8.04725161]
[1738399440222,0.6933297,229.16,229.13,9.66475161]
[1738399440797,0.6933297,229.14,229.13,9.91573161]
[1738399441017,0.6933297,229.14,229.13,8.32823161]
[1738399442020,0.6933297,229.14,229.13,0.03]
[1738399442416,0.6933297,229.14,229.1,0.25098]
[1738399443003,0.6933297,229.11,229.1,0.12549]
[1738399443609,0.6933297,229.13,229.11,0.12549]
[1738399443810,0.6933297,229.13,229.12,8.29823161]
[1738399445216,0.6933297,229.15,229.14,0.12549]
[1738399445417,0.6933297,229.15,229.14,8.17274161]
[1738399446319,0.6933297,229.15,229.14,21.83557014]
[1738399446526,0.6933297,229.17,229.16,0.12549]
[1738399446725,0.6933297,229.17,229.16,8.17274161]
[1738399446913,0.063,229.18,229.16,8.29823161]
[1738399447112,0.063,229.18,229.17,0.25098]
[1738399447303,0.063,229.18,229.17,21.71008014]
[1738399449322,0.063,229.18,229.17,23.51936014]
[1738399449527,0.063,229.18,229.17,28.53720617]
[1738399452719,0.063,229.18,229.17,27.88286014]
[1738399454931,0.063,229.18,229.17,28.84377805]
[1738399455723,0.6933297,229.25,229.17,28.84377805]
[1738399455924,0.6933297,229.27,229.26,0.12549]
[1738399456223,0.6933297,229.27,229.26,8.17274161]
[1738399457827,0.7563297,229.29,229.28,0.12549]
[1738399458005,0.063,229.29,229.28,8.17274161]
[1738399458726,0.063,229.29,229.28,21.83557014]
[1738399459237,0.063,229.29,229.28,26.19697014]
[1738399460935,0.063,229.29,229.28,21.83557014]
[1738399462224,0.7563297,229.29,229.28,8.29823161]
[1738399462625,0.063,229.29,229.28,8.29823161]
[1738399468043,0.7563297,229.29,229.28,8.29823161]
[1738399468843,0.063,229.29,229.28,8.29823161]
[1738399471845,0.7563297,229.29,229.28,8.29823161]
[1738399472038,0.063,229.29,229.28,8.29823161]
[1738399475528,0.6933297,229.26,229.25,8.04725161]
[1738399476055,0.6933297,229.24,229.23,8.04725161]
[1738399476438,0.6933297,229.21,229.19,8.04725161]
[1738399477230,0.6933297,229.21,229.18,0.03]
[1738399477231,0.6933297,229.19,229.18,0.03]
[1738399477434,0.6933297,229.19,229.18,8.32823161]
[1738399479350,0.6933297,229.19,229.18,8.20274161]
[1738399479526,0.6933297,229.19,229.18,0.15549]
[1738399483253,0.6933297,229.19,229.18,0.28098]
[1738399484345,0.6933297,229.21,229.19,0.12549]
[1738399484546,0.6933297,229.21,229.2,8.29823161]
[1738399484849,0.6933297,229.21,229.2,8.17274161]
[1738399485040,0.6933297,229.23,229.21,0.12549]
[1738399485354,0.6933297,229.21,229.2,8.04725161]
[1738399485650,0.6933297,229.21,229.19,8.04725161]
[1738399486150,0.6933297,229.21,229.19,0.12549]
[1738399486349,0.6933297,229.19,229.18,0.03]
[1738399486551,8.74058131,229.19,229.18,0.03]
[1738399486848,1.0,229.18,229.17,0.03]
[1738399487250,8.04725161,229.18,229.17,0.03]
[1738399487441,20.6933297,229.19,229.18,0.03]
[1738399487442,28.74058131,229.19,229.18,0.03]
[1738399487644,20.6933297,229.19,229.18,0.03]
[1738399488556,0.6933297,229.19,229.18,0.03]
[1738399492735,8.7405817,229.19,229.18,0.03]
[1738399494380,0.6933297,229.19,229.18,0.03]
[1738399499281,8.74058131,229.19,229.18,0.03]
[1738399501657,0.6933297,229.19,229.18,0.03]
[1738399502676,0.6933297,229.19,229.18,8.32823161]
[1738399502877,0.7563297,229.21,229.19,0.12549]
[1738399503063,0.7563297,229.21,229.2,8.29823161]
[1738399504159,0.063,229.21,229.2,22.61535692]
[1738399504559,0.6933297,229.28,229.25,0.12549]
[1738399504760,0.6933297,229.28,229.27,8.17274161]
[1738399505472,0.063,229.29,229.27,8.17274161]
[1738399505473,0.063,229.29,229.28,0.12549]
[1738399505673,0.063,229.29,229.28,8.17274161]
[1738399506176,0.063,229.29,229.28,21.83557014]
[1738399506378,0.063,229.29,229.28,22.61508816]
[1738399506780,0.063,229.29,229.28,21.83557014]
[1738399506998,0.063,229.29,229.28,8.29823161]
[1738399507158,0.063,229.29,229.23,9.70915161]
[1738399507159,0.6933297,229.24,229.23,9.70915161]
[1738399507360,0.6933297,229.24,229.17,1.6919]
[1738399507598,0.6933297,229.22,229.17,1.6919]
[1738399508176,0.6933297,229.22,229.21,8.17274161]
[1738399508404,0.6933297,229.22,229.21,21.83557014]
[1738399508619,0.6933297,229.22,229.21,0.25098]
[1738399508921,0.6933297,229.22,229.17,9.73915161]
[1738399509217,0.6933297,229.19,229.18,0.28098]
[1738399509805,0.6933297,229.19,229.18,12.85200768]
[1738399510217,0.6933297,229.21,229.18,26.38934621]
[1738399510508,0.6933297,229.21,229.2,12.82200768]
[1738399510687,0.6933297,229.23,229.22,20.0]
[1738399510994,0.6933297,229.26,229.24,0.12549]
[1738399511194,0.6933297,229.26,229.25,26.35934621]
[1738399511393,0.063,229.29,229.25,26.35934621]
[1738399511394,0.6933297,229.28,229.26,13.78831853]
[1738399511597,0.6933297,229.28,229.27,12.69651768]
[1738399512806,0.6933297,229.28,229.27,26.35934621]
[1738399515290,0.6933297,229.28,229.27,12.82200768]
[1738399515814,0.6933297,229.26,229.25,12.57102768]
[1738399516109,0.6933297,229.26,229.24,12.57102768]
[1738399516693,0.6933297,229.23,229.22,12.69651768]
[1738399517413,0.6933297,229.23,229.22,26.35934621]
[1738399518822,0.6933297,229.23,229.22,0.12549]
[1738399519001,0.6933297,229.19,229.18,12.60102768]
[1738399519930,0.6933297,229.19,229.18,12.85200768]
[1738399520295,0.6933297,229.19,229.18,12.97749768]
[1738399520496,0.6933297,229.21,229.2,0.12549]
[1738399520704,0.6933297,229.21,229.2,12.69651768]
[1738399521802,0.6933297,229.21,229.2,26.35934621]
[1738399522615,0.6933297,229.23,229.22,0.12549]
[1738399522824,0.6933297,229.23,229.22,12.69651768]
[1738399523404,0.6933297,229.23,229.22,26.35934621]
[1738399523715,0.6933297,229.25,229.22,26.35934621]
[1738399523902,0.6933297,229.25,229.24,26.35934621]
[1738399524098,0.6933297,229.27,229.25,0.37647]
[1738399524318,0.6933297,229.27,229.26,26.35934621]
[1738399524619,0.063,229.28,229.27,13.78831853]
[1738399524818,0.063,229.28,229.27,26.35934621]
[1738399525898,0.063,229.28,229.27,26.48483621]
[1738399526909,0.6933297,229.37,229.33,13.41184853]
[1738399527228,0.6933297,229.37,229.36,12.69651768]
[1738399528106,0.6933297,229.37,229.36,26.35934621]
[1738399529316,0.6933297,229.37,229.36,12.82200768]
[1738399530629,0.6933297,229.39,229.37,0.25098]
[1738399530929,0.6933297,229.39,229.37,12.82200768]
[1738399531740,0.063,229.41,229.33,0.12549]
[1738399531741,0.6933297,229.36,229.33,12.57102768]
[1738399532109,0.6933297,229.36,229.34,0.25098]
[1738399532920,0.6933297,229.31,229.29,12.57102768]
[1738399533307,0.6933297,229.31,229.3,12.82200768]
[1738399534327,0.6933297,229.31,229.3,0.12549]
[1738399534572,0.6933297,229.31,229.27,12.57102768]
[1738399534905,0.6933297,229.28,229.27,12.82200768]
[1738399536333,0.6933297,229.28,229.27,12.69651768]
[1738399536532,0.063,229.41,229.23,12.57102768]
[1738399536533,0.6933297,229.26,229.23,12.57102768]
[1738399536709,0.6933297,229.24,229.23,13.78831853]
[1738399536913,0.6933297,229.26,229.24,13.78831853]
[1738399537114,0.6933297,229.26,229.25,26.23385621]
[1738399538226,0.6933297,229.26,229.25,12.69651768]
[1738399539332,0.6933297,229.26,229.25,12.82200768]
[1738399540112,0.6933297,229.26,229.25,0.25098]
[1738399540713,0.6933297,229.26,229.23,12.57102768]
[1738399540929,0.6933297,229.24,229.23,12.57102768]
[1738399541139,7.9679,229.33,229.19,12.57102768]
[1738399541140,0.6933297,229.22,229.19,12.57102768]
[1738399541446,0.6933297,229.2,229.19,12.57102768]
[1738399541819,0.6933297,229.2,229.19,12.82200768]
[1738399543646,0.6933297,229.2,229.18,0.03]
[1738399545923,0.6933297,229.2,229.18,12.72651768]
[1738399546148,0.6933297,229.2,229.19,12.57102768]
[1738399546848,0.6933297,229.2,229.18,12.72651768]
[1738399547926,0.6933297,229.2,229.18,12.60102768]
[1738399548121,0.6933297,229.2,229.18,0.03]
[1738399549928,12.57102768,229.19,229.18,0.03]
[1738399550535,13.26435738,229.2,229.18,0.03]
[1738399551433,12.57102768,229.19,229.18,0.03]
[1738399555460,14.57102768,229.19,229.18,0.03]
[1738399555836,13.57102768,229.19,229.18,0.03]
[1738399556433,14.57102768,229.19,229.18,0.03]
[1738399557153,13.57102768,229.19,229.18,0.03]
[1738399557855,12.57102768,229.19,229.18,0.03]
[1738399558059,0.6933297,229.2,229.18,0.03]
[1738399558655,33.26435738,229.2,229.18,0.03]
[1738399559576,2.0,229.19,229.18,0.03]
[1738399561751,36.04007621,229.19,229.17,0.03]
[1738399562055,0.6933297,229.1,229.09,0.03]
[1738399562272,13.26435738,229.1,229.09,0.03]
[1738399564739,0.6933297,229.1,229.09,0.03]
[1738399565061,13.26435738,229.1,229.09,0.03]
[1738399567659,26.67620591,229.1,229.09,0.03]
[1738399567859,34.73340591,229.1,229.09,0.03]
[1738399572862,31.82826071,229.1,229.09,0.03]
[1738399573053,1.07704265,229.12,229.04,0.03]
[1738399573054,48.67620591,229.07,229.04,0.03]
[1738399573252,53.82826071,229.07,229.04,0.03]
[1738399574144,16.10517823,229.05,229.04,0.03]
[1738399574339,46.39928839,229.05,229.04,0.03]
[1738399576961,33.82826071,229.05,229.04,0.03]
[1738399577668,46.39928839,229.05,229.04,0.03]
[1738399578365,2.6933297,228.99,228.98,0.03]
[1738399578540,15.26435738,228.99,228.98,0.03]
[1738399578945,14.26435738,228.99,228.98,0.03]
[1738399580271,15.26435738,228.99,228.98,0.03]
[1738399580649,0.6933297,228.9,228.89,11.13102768]
[1738399581269,0.6933297,228.9,228.88,12.57102768]
[1738399581885,0.6933297,228.9,228.84,0.12549]
[1738399581886,0.6933297,228.9,228.87,12.57102768]
[1738399583253,0.6933297,228.88,228.87,12.57102768]
[1738399583480,0.6933297,228.88,228.84,12.57102768]
[1738399583983,12.57102768,228.87,228.81,0.03]
[1738399584891,13.26435738,228.88,228.81,12.60102768]
[1738399585202,0.6933297,228.88,228.82,12.57102768]
[1738399586105,12.57102768,228.87,228.81,0.03]
[1738399589910,13.57102768,228.87,228.81,0.03]
[1738399591007,12.57102768,228.87,228.81,0.03]
[1738399591224,13.26435738,228.88,228.81,12.60102768]
[1738399592230,12.57102768,228.87,228.81,0.03]
[1738399595014,13.57102768,228.87,228.81,0.03]
[1738399595697,14.57102768,228.87,228.81,0.03]
[1738399599825,10.07351049,228.87,228.81,0.03]
[1738399602519,23.48535902,228.87,228.81,0.03]
[1738399604721,10.07351049,228.87,228.81,0.03]
[1738399606631,9.07351049,228.87,228.81,0.03]
[1738399606937,10.07351049,228.87,228.81,0.03]
[1738399607545,9.07351049,228.87,228.81,0.03]
[1738399607839,10.07351049,228.87,228.81,0.03]
[1738399608214,8.07351049,228.87,228.81,0.03]
[1738399608422,0.6933297,228.88,228.82,8.07351049]
[1738399609911,20.0,228.87,228.82,8.07351049]
[1738399610107,0.6933297,228.88,228.84,8.07351049]
[1738399610434,0.6933297,228.88,228.86,8.10351049]
[1738399614034,0.6933297,228.88,228.87,1.5434]
[1738399625735,0.6933297,228.88,228.87,9.61691049]
[1738399628655,0.6933297,228.88,228.87,8.07351049]
[1738399628949,0.6933297,228.88,228.87,8.10351049]
[1738399632025,0.6933297,228.88,228.87,0.03]
[1738399635350,0.6933297,228.88,228.87,8.10351049]
[1738399636744,0.60621207,228.88,228.87,8.10351049]
[1738399637141,0.063,228.89,228.87,8.10351049]
[1738399638052,0.60621207,228.88,228.87,8.10351049]
[1738399639034,0.60621207,228.88,228.87,0.03]
[1738399639543,0.60621207,228.88,228.87,8.10351049]
[1738399639943,0.60621207,228.88,228.87,0.03]
[1738399649187,20.60621207,228.88,228.87,0.03]
[1738399651589,28.67972256,228.88,228.87,0.03]
[1738399651749,43.09157109,228.88,228.87,0.03]
[1738399652950,0.60621207,228.88,228.87,8.10351049]
[1738399653390,0.66921207,228.88,228.87,0.03]
[1738399654564,0.66921207,228.88,228.87,8.10351049]
[1738399655373,0.66921207,228.88,228.87,0.03]
[1738399661278,0.063,228.88,228.87,8.10351049]
[1738399661566,0.063,228.88,228.87,9.85740049]
[1738399662076,0.60621207,228.94,228.92,0.12549]
[1738399662261,0.60621207,228.96,228.93,8.07351049]
[1738399662585,0.60621207,228.96,228.95,8.07351049]
[1738399662878,18.16956395,228.98,228.95,8.07351049]
[1738399663086,17.56335188,228.98,228.95,8.07351049]
[1738399663280,0.60621207,229.0,228.95,8.07351049]
[1738399663583,0.60621207,229.0,228.99,8.07351049]
[1738399666284,0.60621207,229.02,228.99,8.07351049]
[1738399666468,0.60621207,229.0,228.99,8.07351049]
[1738399667485,0.60621207,229.0,228.98,8.07351049]
[1738399667673,0.60621207,228.96,228.94,8.07351049]
[1738399667879,1.063,229.05,228.91,8.07351049]
[1738399667880,0.60621207,228.94,228.91,8.07351049]
[1738399668185,0.60621207,228.92,228.91,8.07351049]
[1738399669381,0.60621207,228.94,228.91,8.07351049]
[1738399669574,0.60621207,228.94,228.92,8.07351049]
[1738399670959,0.60621207,228.94,228.93,8.07351049]
[1738399671562,0.60621207,228.98,228.93,8.07351049]
[1738399671784,0.60621207,228.98,228.97,8.07351049]
[1738399672365,0.60621207,229.0,228.97,8.07351049]
[1738399673088,0.60621207,229.0,228.96,8.07351049]
[1738399673885,0.60621207,229.0,228.95,8.07351049]
[1738399674099,0.60621207,228.98,228.96,8.07351049]
[1738399674596,0.60621207,228.98,228.97,8.07351049]
[1738399675166,20.0,229.04,228.97,8.07351049]
[1738399675167,0.60621207,229.0,228.97,8.07351049]
[1738399675483,0.60621207,229.0,228.99,8.07351049]
[1738399675785,0.60621207,229.02,228.99,8.07351049]
[1738399675971,0.60621207,229.02,229.01,8.07351049]
[1738399676360,0.60621207,229.04,229.01,8.07351049]
[1738399676683,0.60621207,229.04,228.98,1.6626]
[1738399676684,0.60621207,229.04,229.03,8.07351049]
[1738399678876,0.60621207,229.04,229.02,8.07351049]
[1738399679191,0.60621207,229.02,229.01,8.07351049]
[1738399679766,0.063,229.05,229.04,20.0]
[1738399680383,0.063,229.05,229.04,28.19900049]
[1738399680575,0.063,229.05,229.04,41.73633902]
[1738399680970,0.063,229.11,229.09,0.12549]
[1738399681172,0.063,229.11,229.1,21.86182902]
[1738399681371,0.60621207,229.21,229.14,20.12549]
[1738399681676,0.60621207,229.21,229.18,12.56976767]
[1738399683087,0.60621207,229.22,229.18,12.56976767]
[1738399683310,0.063,229.23,229.18,26.2325962]
[1738399683593,0.063,229.23,229.18,26.3580862]
[1738399684392,0.063,229.23,229.22,33.66282853]
[1738399684580,0.063,229.23,229.22,58.80236387]
[1738399685694,0.063,229.23,229.22,32.69525767]
[1738399686069,0.063,229.23,229.22,32.56976767]
[1738399686487,0.063,229.23,229.22,46.2325962]
[1738399686792,0.063,229.28,229.25,0.39378793]
[1738399686991,0.063,229.28,229.27,26.2325962]
[1738399687296,0.063,229.28,229.27,12.56976767]
[1738399687481,0.063,229.28,229.25,12.56976767]
[1738399687482,0.60621207,229.26,229.25,12.56976767]
[1738399687864,0.60621207,229.26,229.22,12.56976767]
[1738399688085,0.063,229.28,229.2,12.56976767]
[1738399688086,0.60621207,229.23,229.2,12.56976767]
[1738399688370,0.66921207,229.23,229.21,12.56976767]
[1738399689394,0.66921207,229.23,229.22,12.56976767]
[1738399689708,0.063,229.23,229.22,12.56976767]
[1738399690192,0.063,229.23,229.22,12.69525767]
[1738399690775,0.063,229.23,229.22,26.2325962]
[1738399691281,0.063,229.23,229.22,26.62638413]
[1738399691895,0.063,229.23,229.22,39.3216418]
[1738399692211,0.063,229.23,229.22,26.75187413]
[1738399692394,0.063,229.23,229.22,26.3580862]
[1738399695200,0.063,229.23,229.22,38.92785387]
[1738399695498,0.063,229.23,229.22,26.2325962]
[1738399698203,0.063,229.23,229.22,38.80236387]
[1738399698516,0.063,229.28,229.27,0.12549]
[1738399698804,0.063,229.28,229.27,28.16838413]
[1738399699174,0.063,229.28,229.27,28.29387413]
[1738399699377,0.063,229.29,229.28,13.91380853]
[1738399699682,0.063,229.39,229.37,12.56976767]
[1738399699996,0.063,229.39,229.38,12.56976767]
[1738399700892,0.60621207,229.37,229.34,12.56976767]
[1738399701092,0.60621207,229.35,229.31,20.25098]
[1738399701400,0.60621207,229.37,229.31,20.25098]
[1738399702286,0.60621207,229.37,229.36,12.56976767]
[1738399703317,0.66921207,229.39,229.36,12.56976767]
[1738399703514,0.66921207,229.39,229.38,12.56976767]
[1738399703810,0.66921207,229.39,229.37,12.56976767]
[1738399704187,0.66921207,229.39,229.38,12.56976767]
[1738399705286,0.66921207,229.39,229.37,12.56976767]
[1738399706907,0.66921207,229.39,229.38,12.56976767]
[1738399708329,0.66921207,229.39,229.37,20.0]
[1738399708617,0.66921207,229.39,229.35,32.56976767]
[1738399709193,0.66921207,229.39,229.35,20.0]
[1738399710224,0.60621207,229.33,229.28,12.56976767]
[1738399710403,0.60621207,229.35,229.3,12.56976767]
[1738399711127,0.60621207,229.35,229.28,13.66282853]
[1738399711128,0.60621207,229.32,229.29,12.56976767]
[1738399711417,0.60621207,229.3,229.24,12.56976767]
[1738399711595,0.60621207,229.24,229.22,0.03]
[1738399716102,0.60621207,229.24,229.22,12.59976767]
[1738399716296,0.60621207,229.26,229.23,12.56976767]
[1738399717235,0.60621207,229.26,229.22,12.59976767]
[1738399717907,0.60621207,229.24,229.22,12.59976767]
[1738399718927,0.60621207,229.26,229.22,12.59976767]
[1738399719426,0.60621207,229.26,229.24,12.56976767]
[1738399721009,0.60621207,229.26,229.23,12.56976767]
[1738399722507,0.60621207,229.26,229.22,12.59976767]
[1738399722716,0.60621207,229.26,229.22,0.03]
[1738399723430,0.60621207,229.23,229.22,0.03]
[1738399725237,0.60621207,229.25,229.22,0.03]
[1738399725740,0.60621207,229.25,229.22,12.59976767]
[1738399726633,0.60621207,229.27,229.24,12.56976767]
[1738399727039,0.60621207,229.27,229.23,12.56976767]
[1738399727337,0.60621207,229.27,229.24,32.56976767]
[1738399727537,0.60621207,229.29,229.24,32.56976767]
[1738399727837,0.60621207,229.27,229.24,32.56976767]
[1738399728013,0.60621207,229.29,229.24,32.56976767]
[1738399728633,0.60621207,229.29,229.25,12.56976767]
[1738399729142,0.60621207,229.29,229.24,20.0]
[1738399729143,0.60621207,229.29,229.26,12.56976767]
[1738399729528,0.60621207,229.31,229.27,12.56976767]
[1738399730224,0.03,229.32,229.3,12.56976767]
[1738399730624,0.03,229.32,229.31,12.56976767]
[1738399731812,0.03,229.32,229.3,12.56976767]
[1738399732020,0.03,229.32,229.31,12.56976767]
[1738399732417,0.03,229.32,229.3,12.56976767]
[1738399733936,0.03,229.32,229.31,12.56976767]
[1738399734744,0.03,229.32,229.31,26.2325962]
[1738399737439,0.03,229.32,229.31,12.69525767]
[1738399737643,0.63621207,229.32,229.27,12.56976767]
[1738399737832,0.63621207,229.32,229.26,12.56976767]
[1738399738031,0.63621207,229.32,229.29,0.12549]
[1738399738228,0.63621207,229.32,229.29,12.56976767]
[1738399738563,0.63621207,229.32,229.28,12.56976767]
[1738399739661,0.63621207,229.32,229.29,20.12549]
[1738399739870,0.63621207,229.32,229.29,32.69525767]
[1738399740226,0.03,229.32,229.29,32.69525767]
[1738399740425,0.03,229.32,229.3,12.56976767]
[1738399741356,0.03,229.32,229.31,12.56976767]
[1738399741535,0.03,229.32,229.31,12.69525767]
[1738399742476,0.03,229.32,229.29,12.56976767]
[1738399742631,0.63621207,229.32,229.29,12.56976767]
[1738399742952,0.63621207,229.32,229.29,0.12549]
[1738399745250,0.60621207,229.29,229.25,12.56976767]
[1738399745450,0.60621207,229.29,229.23,12.56976767]
[1738399745751,0.60621207,229.29,229.26,20.0]
[1738399746126,0.60621207,229.29,229.26,32.56976767]
[1738399746339,0.60621207,229.29,229.27,12.56976767]
[1738399747123,0.60621207,229.29,229.26,32.56976767]
[1738399747327,0.03,229.32,229.2,0.51927793]
[1738399747328,0.60621207,229.27,229.23,12.56976767]
[1738399747626,0.60621207,229.27,229.22,12.59976767]
[1738399747950,0.60621207,229.24,229.22,0.03]
[1738399748854,13.17597974,229.24,229.22,0.03]
[1738399749932,0.60621207,229.24,229.22,0.03]
[1738399753265,12.56976767,229.23,229.22,0.03]
[1738399759250,20.31506767,229.23,229.22,0.03]
[1738399759451,25.61985429,229.23,229.22,0.03]
[1738399762661,39.03170282,229.23,229.22,0.03]
[1738399762960,0.60621207,229.12,229.09,0.03]
[1738399764247,0.60621207,229.12,229.1,12.56976767]
[1738399764442,0.60621207,229.15,229.11,12.69525767]
[1738399764649,0.60621207,229.15,229.11,12.56976767]
[1738399764855,0.60621207,229.15,229.1,12.56976767]
[1738399769883,0.60621207,229.15,229.11,12.56976767]
[1738399771745,0.60621207,229.15,229.11,8.04957738]
[1738399772465,0.60621207,229.15,229.11,8.11257738]
[1738399772654,0.60621207,229.13,229.11,0.063]
[1738399778979,0.60621207,229.13,229.11,8.11257738]
[1738399779271,0.60621207,229.15,229.12,8.04957738]
[1738399780055,0.60621207,229.15,229.11,8.11257738]
[1738399781170,0.60621207,229.15,229.11,0.063]
[1738399781957,0.60621207,229.15,229.11,8.11257738]
[1738399785269,0.60621207,229.15,229.12,8.04957738]
[1738399785472,8.04957738,229.19,229.12,8.04957738]
[1738399785473,0.60621207,229.17,229.12,8.04957738]
[1738399785653,0.60621207,229.19,229.16,8.04957738]
[1738399786271,0.60621207,229.19,229.15,8.04957738]
[1738399786477,0.60621207,229.17,229.14,8.04957738]
[1738399787170,8.65578945,229.15,229.11,0.063]
[1738399787374,0.60621207,229.15,229.11,0.063]
[1738399788379,0.60621207,229.15,229.11,8.11257738]
[1738399789077,0.60621207,229.15,229.11,0.063]
[1738399790291,0.60621207,229.13,229.11,0.063]
[1738399791393,0.60621207,229.15,229.11,0.063]
[1738399793007,0.60621207,229.13,229.11,0.063]
[1738399794181,0.60621207,229.16,229.11,0.063]
[1738399794399,0.60621207,229.13,229.11,0.063]
[1738399802807,0.60621207,229.13,229.12,8.04957738]
[1738399803168,0.60621207,229.13,229.12,8.17506738]
[1738399803572,0.60621207,229.13,229.11,8.11257738]
[1738399803879,0.60621207,229.13,229.11,0.063]
[1738399804099,0.60621207,229.13,229.12,21.71240591]
[1738399804300,0.60621207,229.13,229.12,8.04957738]
[1738399804594,0.60621207,229.13,229.11,8.11257738]
[1738399804971,8.65578945,229.13,229.11,0.063]
[1738399805176,8.04957738,229.12,229.11,0.063]
[1738399805395,8.65578945,229.13,229.11,0.063]
[1738399807413,8.65578945,229.13,229.12,8.04957738]
[1738399807414,0.60621207,229.13,229.12,8.04957738]
[1738399808370,0.60621207,229.13,229.12,21.71240591]
[1738399808792,0.60621207,229.13,229.12,8.04957738]
[1738399808999,0.60621207,229.13,229.11,0.063]
[1738399809000,0.60621207,229.13,229.11,8.11257738]
[1738399809204,0.60621207,229.13,229.12,8.04957738]
[1738399809380,0.60621207,229.13,229.12,8.30055738]
[1738399811388,0.60621207,229.13,229.11,0.063]
[1738399812106,0.60621207,229.13,229.11,0.18849]
[1738399812795,0.60621207,229.13,229.11,8.23806738]
[1738399813303,0.60621207,229.13,229.12,21.71240591]
[1738399814191,0.60621207,229.13,229.12,21.83789591]
[1738399815286,0.60621207,229.13,229.12,8.17506738]
[1738399815607,0.60621207,229.13,229.11,0.063]
[1738399816302,0.60621207,229.13,229.11,8.11257738]
[1738399817110,0.60621207,229.13,229.11,0.063]
[1738399823017,8.04957738,229.12,229.11,0.063]
[1738399824541,0.60621207,229.13,229.11,0.063]
[1738399825847,0.60621207,229.13,229.12,8.04957738]
[1738399826718,0.60621207,229.13,229.12,21.71240591]
[1738399826920,0.60621207,229.14,229.13,13.66282853]
[1738399827097,0.60621207,229.14,229.11,8.11257738]
[1738399828038,0.60621207,229.13,229.12,21.71240591]
[1738399828203,0.60621207,229.13,229.11,8.11257738]
[1738399828601,0.60621207,229.13,229.12,13.66282853]
[1738399830039,0.60621207,229.13,229.12,0.37647]
[1738399830415,0.60621207,229.13,229.11,8.11257738]
[1738399830617,0.60621207,229.13,229.11,0.063]
[1738399833348,0.60621207,229.13,229.11,8.11257738]
[1738399834021,0.60621207,229.13,229.12,13.53733853]
[1738399834425,0.60621207,229.15,229.12,0.654477]
[1738399834624,0.60621207,229.13,229.12,8.04957738]
[1738399834866,0.60621207,229.13,229.11,8.11257738]
[1738399835032,0.60621207,229.13,229.12,13.53733853]
[1738399836331,0.60621207,229.13,229.12,21.58691591]
[1738399837129,0.60621207,229.18,229.14,0.12549]
[1738399837329,0.60621207,229.2,229.15,8.04957738]
[1738399837631,0.60621207,229.2,229.16,13.53733853]
[1738399838545,0.60621207,229.2,229.17,8.04957738]
[1738399839335,0.60621207,229.2,229.16,8.30055738]
[1738399840029,0.60621207,229.2,229.17,8.04957738]
[1738399843050,0.03,229.22,229.2,13.53733853]
[1738399843947,0.03,229.22,229.2,8.17506738]
[1738399846252,0.03,229.22,229.21,22.36666692]
[1738399846593,0.03,229.22,229.21,21.71240591]